bitfinex/quotes_SOLUSD_20250728
["timestamp","ask_amount","ask_price","bid_price","bid_amount"]
[1753718703561,38.74,186.79,186.74,10.55965528]
[1753718703562,49.29965528,186.79,186.74,10.55965528]
[1753718703751,3.97359436,186.78,186.74,10.55965528]
[1753718704263,3.97359436,186.77,186.74,10.55965528]
[1753718704441,38.74,186.79,186.72,5.6253236]
[1753718704634,3.97669007,186.78,186.74,10.55965528]
[1753718704939,3.97669007,186.78,186.72,5.6253236]
[1753718704940,3.97669007,186.78,186.75,10.55965528]
[1753718705752,3.97669007,186.78,186.77,10.55965528]
[1753718705942,49.98965528,186.83,186.77,10.55965528]
[1753718706140,7.95417725,186.82,186.78,10.55965528]
[1753718706357,10.55965528,186.8,186.75,10.55965528]
[1753718706559,38.74,186.83,186.79,10.55965528]
[1753718706750,3.97759972,186.82,186.79,0.24]
[1753718706959,3.97759972,186.81,186.8,10.55965528]
[1753718707159,38.74,186.83,186.8,10.55965528]
[1753718707368,3.97732116,186.82,186.79,16.78468397]
[1753718707567,0.03,186.88,186.82,16.78468397]
[1753718707871,0.03,186.88,186.87,10.55965528]
[1753718708068,0.03,186.88,186.87,53.61318925]
[1753718708243,0.69,186.97,186.88,43.06900711]
[1753718708442,3.97638885,186.91,186.89,0.26867825]
[1753718708661,3.97653968,186.9,186.89,16.78468397]
[1753718708845,3.97653968,186.9,186.89,17.26339097]
[1753718709050,0.69,186.98,186.9,5.35045478]
[1753718709367,7.95280768,186.97,186.91,0.26859231]
[1753718709670,7.95280768,186.96,186.91,0.26859231]
[1753718709876,7.95280768,186.95,186.91,27.61293156]
[1753718710045,7.95280768,186.94,186.91,28.1072547]
[1753718710246,38.81,186.99,186.91,28.1072547]
[1753718710457,7.95247388,186.98,186.91,92.9072547]
[1753718710703,3.97623694,186.97,186.91,92.9072547]
[1753718710974,3.97623694,186.96,186.91,92.9072547]
[1753718711149,5.37791056,186.99,186.91,98.25742323]
[1753718711346,3.9753702,186.98,186.91,98.25742323]
[1753718711546,3.9753702,186.97,186.91,98.25742323]
[1753718711766,3.9753702,186.96,186.91,98.25742323]
[1753718711960,3.9753702,186.95,186.91,75.62824759]
[1753718712161,10.58965528,186.99,186.91,10.55965528]
[1753718712162,0.72,186.92,186.91,10.55965528]
[1753718712341,0.72,186.92,186.88,0.26859231]
[1753718712342,0.72,186.92,186.9,10.55965528]
[1753718713158,0.69,186.91,186.86,44.9242]
[1753718713358,0.69,186.9,186.87,10.55965528]
[1753718713760,5.37993307,186.92,186.88,10.55965528]
[1753718713955,0.72,186.92,186.89,10.55965528]
[1753718714864,0.69,186.91,186.89,10.55965528]
[1753718715072,0.69,186.91,186.88,10.55965528]
[1753718715249,0.69,186.9,186.88,10.55965528]
[1753718715565,5.3798938,186.92,186.88,10.55965528]
[1753718715746,0.69,186.91,186.88,10.55965528]
[1753718717143,0.69,186.91,186.86,44.9242]
[1753718717464,0.69,186.91,186.88,10.55965528]
[1753718718048,6.04018501,186.91,186.87,10.55965528]
[1753718718860,6.04018501,186.91,186.86,6.1442]
[1753718719146,6.04018501,186.91,186.83,27.34433925]
[1753718719147,10.55965528,186.88,186.83,27.34433925]
[1753718719347,0.69,186.87,186.83,27.34433925]
[1753718719872,6.0409804,186.89,186.85,10.55965528]
[1753718720651,5.35043293,186.91,186.86,10.55965528]
[1753718720868,5.35043293,186.91,186.88,10.55965528]
[1753718721169,0.03,186.92,186.9,10.55965528]
[1753718721469,0.03,186.92,186.91,10.82824759]
[1753718721772,0.03,186.92,186.91,10.55965528]
[1753718722371,0.03,186.92,186.89,0.26859231]
[1753718722372,0.72,186.92,186.89,10.55965528]
[1753718722548,0.03,186.92,186.89,10.55965528]
[1753718722747,0.03,186.92,186.91,10.55965528]
[1753718722965,0.03,186.92,186.9,10.55965528]
[1753718723172,0.72,186.92,186.9,10.55965528]
[1753718723355,0.03,186.92,186.9,10.55965528]
[1753718723557,0.72,186.92,186.89,10.55965528]
[1753718724060,6.07011965,186.92,186.89,10.55965528]
[1753718724259,6.07011965,186.92,186.86,10.55965528]
[1753718724260,0.69,186.91,186.86,10.55965528]
[1753718724461,0.69,186.9,186.86,10.55965528]
[1753718724693,0.69,186.9,186.87,10.55965528]
[1753718724848,44.10011965,186.92,186.89,10.55965528]
[1753718725043,0.03,186.92,186.89,10.55965528]
[1753718725272,0.03,186.92,186.9,10.55965528]
[1753718725449,0.03,186.92,186.91,10.55965528]
[1753718726763,0.03,186.92,186.91,16.38838752]
[1753718727073,0.03,186.92,186.91,10.82821899]
[1753718727569,0.03,186.92,186.91,16.17838752]
[1753718727874,0.03,186.92,186.91,33.17307149]
[1753718728063,0.03,186.92,186.91,65.43367149]
[1753718729462,0.03,186.92,186.91,104.41799463]
[1753718729671,0.03,186.92,186.91,104.14943092]
[1753718731956,0.03,186.92,186.91,103.93943092]
[1753718732575,0.03,186.92,186.91,98.30493925]
[1753718733071,0.03,186.92,186.91,75.25965528]
[1753718733279,0.03,186.92,186.91,92.04433925]
[1753718733664,0.03,186.92,186.91,92.31290296]
[1753718734673,0.03,186.92,186.91,66.31290296]
[1753718734865,0.03,186.92,186.91,66.04433925]
[1753718735264,0.7,186.92,186.91,10.55965528]
[1753718735481,11.25965528,186.92,186.84,0.06]
[1753718735778,10.55965528,186.89,186.84,10.61965528]
[1753718735958,16.58068267,186.88,186.84,0.06]
[1753718736158,0.67,186.87,186.84,0.06]
[1753718736467,5.35080381,186.89,186.84,0.06]
[1753718736652,0.67,186.86,186.84,10.61965528]
[1753718737675,0.67,186.85,186.84,10.61965528]
[1753718738178,0.67,186.85,186.84,0.06]
[1753718738863,0.67,186.85,186.84,10.61965528]
[1753718739460,6.02137879,186.87,186.84,10.61965528]
[1753718739660,0.67,186.86,186.84,10.61965528]
[1753718740182,6.0210956,186.88,186.84,10.61965528]
[1753718740560,0.67,186.87,186.84,10.61965528]
[1753718740882,0.67,186.86,186.84,0.06]
[1753718741399,10.55965528,186.85,186.84,0.06]
[1753718741765,0.67,186.85,186.84,0.06]
[1753718741964,6.02188654,186.85,186.84,0.06]
[1753718742370,16.58154182,186.85,186.84,0.06]
[1753718743355,20.79701199,186.85,186.84,0.06]
[1753718743768,34.17672834,186.85,186.81,0.06]
[1753718743995,10.55965528,186.82,186.81,0.06]
[1753718744181,11.22874852,186.82,186.81,0.06]
[1753718744361,11.89874852,186.82,186.81,0.06]
[1753718745459,50.51874852,186.82,186.81,0.06]
[1753718745858,6.02274595,186.82,186.81,0.06]
[1753718746564,16.58240123,186.82,186.81,0.06]
[1753718747471,10.55965528,186.79,186.76,0.06]
[1753718747992,6.6931288,186.78,186.76,0.06]
[1753718748283,17.25278408,186.78,186.76,0.06]
[1753718748461,0.67,186.77,186.76,0.06]
[1753718749591,6.02417893,186.77,186.76,0.06]
[1753718749770,16.58383421,186.77,186.76,0.06]
[1753718751983,11.22965528,186.77,186.76,0.06]
[1753718752164,0.67,186.77,186.76,0.06]
[1753718752365,6.02417893,186.77,186.76,0.06]
[1753718752895,16.58383421,186.77,186.76,0.06]
[1753718753101,55.14383421,186.77,186.76,0.06]
[1753718753798,55.14383421,186.77,186.76,1e-08]
[1753718753970,74.1492473,186.77,186.65,6.2479]
[1753718754291,10.55965528,186.7,186.65,10.55965528]
[1753718754478,0.67,186.69,186.65,10.55965528]
[1753718754676,49.11965528,186.7,186.65,10.55965528]
[1753718754877,38.56,186.7,186.66,10.55965528]
[1753718755111,10.55965528,186.68,186.63,10.55965528]
[1753718755394,0.67,186.67,186.62,16.78468397]
[1753718755582,0.67,186.67,186.63,15.91781215]
[1753718755779,0.67,186.67,186.64,10.55965528]
[1753718756192,55.14611639,186.7,186.64,10.55965528]
[1753718756497,39.23,186.72,186.65,17.05468397]
[1753718756739,39.23,186.72,186.68,10.55965528]
[1753718756876,38.56,186.72,186.69,10.55965528]
[1753718757075,11.89914272,186.71,186.66,10.55965528]
[1753718757274,0.67,186.7,186.65,10.55965528]
[1753718757474,0.67,186.69,186.63,37.60607208]
[1753718757695,6.02657695,186.69,186.65,10.55965528]
[1753718758200,6.02657695,186.69,186.63,11.60607208]
[1753718758201,6.0265022,186.69,186.63,11.60602766]
[1753718758398,6.0265022,186.69,186.65,10.55965528]
[1753718758693,6.02543595,186.71,186.67,10.55965528]
[1753718758893,1.33948744,186.71,186.67,10.55965528]
[1753718759099,0.67,186.74,186.7,10.55965528]
[1753718759299,0.67,186.74,186.68,0.27]
[1753718759479,0.67,186.74,186.71,10.55965528]
[1753718759679,6.02519777,186.74,186.7,10.55965528]
[1753718760097,0.67,186.73,186.7,10.55965528]
[1753718760294,0.67,186.73,186.69,10.55965528]
[1753718760508,5.35519777,186.74,186.69,10.55965528]
[1753718760807,0.67,186.73,186.66,10.55965528]
[1753718760987,10.55965528,186.7,186.65,10.55965528]
[1753718761318,10.55965528,186.67,186.62,10.55965528]
[1753718761493,0.66,186.66,186.62,10.55965528]
[1753718761693,0.66955916,186.69,186.63,0.27]
[1753718761984,0.66,186.73,186.68,10.55965528]
[1753718762190,0.66,186.72,186.68,10.55965528]
[1753718762387,10.55965528,186.7,186.64,99.35965528]
[1753718762709,1.32955916,186.69,186.64,10.55965528]
[1753718762912,11.22921444,186.69,186.63,10.55965528]
[1753718763224,11.22921444,186.69,186.61,48.47339645]
[1753718763389,11.88921444,186.69,186.64,10.55965528]
[1753718763580,0.66,186.68,186.64,10.55965528]
[1753718763904,0.66,186.68,186.63,10.55965528]
[1753718763905,6.01683403,186.68,186.63,10.55965528]
[1753718764086,5.35653761,186.69,186.63,5.35813309]
[1753718764406,5.35653761,186.69,186.61,43.11468397]
[1753718764407,6.02609677,186.69,186.64,10.55965528]
[1753718764576,0.66,186.68,186.64,10.55965528]
[1753718764778,0.66,186.67,186.63,10.55965528]
[1753718765199,6.02609677,186.69,186.61,0.06]
[1753718765404,0.66,186.66,186.61,0.06]
[1753718765576,10.55965528,186.64,186.61,0.06]
[1753718765777,5.35848247,186.62,186.61,0.06]
[1753718766386,6.01848247,186.62,186.61,0.06]
[1753718766982,16.57813775,186.62,186.61,0.06]
[1753718767809,6.01848247,186.62,186.61,0.06]
[1753718768017,11.22939381,186.64,186.61,0.06]
[1753718768302,0.66,186.62,186.61,0.06]
[1753718769283,39.32,186.62,186.61,0.06]
[1753718769518,0.66,186.62,186.61,0.06]
[1753718769697,39.32,186.62,186.61,0.06]
[1753718769895,55.23813775,186.62,186.61,0.06]
[1753718770095,11.21965528,186.62,186.61,0.06]
[1753718770292,0.66970265,186.65,186.61,0.06]
[1753718770497,10.55965528,186.62,186.61,0.06]
[1753718770693,11.88946558,186.62,186.61,0.06]
[1753718770996,10.55965528,186.58,186.53,10.55965528]
[1753718771198,6.01991852,186.57,186.51,22.1462731]
[1753718771417,6.01991852,186.57,186.53,10.55965528]
[1753718771618,10.55965528,186.55,186.5,10.55965528]
[1753718771913,1.33009756,186.54,186.46,2.01417929]
[1753718772100,10.55965528,186.51,186.46,12.57383457]
[1753718772280,0.67024128,186.5,186.47,10.55965528]
[1753718772483,38.72,186.51,186.49,10.55965528]
[1753718772684,11.889681,186.56,186.5,10.55965528]
[1753718772918,0.67002572,186.56,186.53,10.55965528]
[1753718773092,39.38998981,186.57,186.54,10.55965528]
[1753718773286,39.38998981,186.57,186.52,10.55965528]
[1753718773287,6.02048044,186.56,186.52,10.55965528]
[1753718773611,1.33006164,186.55,186.51,10.55965528]
[1753718773784,0.66,186.54,186.5,10.55965528]
[1753718773986,0.66,186.54,186.51,10.55965528]
[1753718774209,0.67006164,186.55,186.47,22.47741787]
[1753718774410,0.67006164,186.55,186.51,10.55965528]
[1753718774929,0.66,186.54,186.47,22.47741787]
[1753718775228,38.72,186.57,186.53,10.55965528]
[1753718775388,5.35963125,186.58,186.54,10.55965528]
[1753718775608,5.35963125,186.58,186.48,0.2715623]
[1753718775609,1.32998981,186.57,186.48,0.2715623]
[1753718775914,0.66,186.56,186.51,10.55965528]
[1753718776110,1.33006164,186.55,186.48,17.05624627]
[1753718776299,0.66,186.54,186.48,16.78468397]
[1753718776506,11.88975284,186.54,186.49,10.55965528]
[1753718776811,0.66,186.53,186.5,10.55965528]
[1753718777010,38.76,186.54,186.51,10.55965528]
[1753718777425,38.76,186.54,186.48,17.11468397]
[1753718777426,0.66,186.53,186.49,10.55965528]
[1753718777744,10.55965528,186.53,186.46,2.01417929]
[1753718777909,11.88982469,186.52,186.47,10.55965528]
[1753718778112,0.66,186.51,186.47,10.55965528]
[1753718778316,0.67024128,186.5,186.46,2.01417929]
[1753718778512,5.36025587,186.56,186.5,16.78468397]
[1753718778735,38.78,186.56,186.53,10.55965528]
[1753718779050,38.78,186.56,186.54,10.55965528]
[1753718779639,38.78,186.56,186.5,22.20654403]
[1753718779640,1.33006164,186.55,186.51,10.55965528]
[1753718779829,11.21965528,186.54,186.5,0.06]
[1753718780003,0.67013349,186.53,186.5,0.06]
[1753718780207,1.33013349,186.53,186.5,0.06]
[1753718780608,38.8,186.53,186.51,10.55965528]
[1753718780810,6.0296562,186.58,186.52,10.55965528]
[1753718781110,6.02005841,186.57,186.53,10.55965528]
[1753718781310,10.55965528,186.55,186.5,10.61965528]
[1753718781510,50.70975284,186.54,186.5,0.06]
[1753718781936,10.55965528,186.52,186.5,0.06]
[1753718782134,11.22982469,186.52,186.5,0.06]
[1753718782626,11.21965528,186.51,186.5,0.06]
[1753718782936,38.82,186.51,186.5,0.06]
[1753718783146,55.40129808,186.51,186.5,0.06]
[1753718783314,56.07150343,186.51,186.5,0.06]
[1753718783715,44.8416428,186.51,186.5,0.06]
[1753718783912,1.33009756,186.54,186.5,0.06]
[1753718784137,38.82,186.52,186.5,0.06]
[1753718784337,16.59109852,186.53,186.5,0.06]
[1753718784642,10.55965528,186.52,186.5,0.06]
[1753718784839,11.22986063,186.51,186.5,0.06]
[1753718785022,17.25150343,186.51,186.5,0.06]
[1753718785227,21.20967308,186.51,186.5,0.06]
[1753718785932,60.00967308,186.51,186.5,0.06]
[1753718786116,89.96788356,186.51,186.5,0.06]
[1753718786319,90.2522067,186.51,186.5,1e-08]
[1753718786717,89.96788356,186.51,186.5,1e-08]
[1753718786918,90.2522067,186.51,186.5,1e-08]
[1753718788018,0.28432314,186.5,186.45,1.98505285]
[1753718788213,10.55965528,186.46,186.45,1.98505285]
[1753718788413,48.06676519,186.46,186.45,1.98505285]
[1753718788652,58.62642047,186.46,186.45,1.98505285]
[1753718788857,9.24676519,186.46,186.45,1.98505285]
[1753718789150,4.62855471,186.46,186.45,1.98505285]
[1753718789355,3.95816965,186.46,186.45,12.54470813]
[1753718789650,3.95816965,186.46,186.45,1.98505285]
[1753718789857,11.23000439,186.47,186.45,1.98505285]
[1753718790153,3.95938558,186.46,186.45,1.98505285]
[1753718790364,57.93768239,186.46,186.45,1.98505285]
[1753718790535,3.95824664,186.46,186.45,1.98505285]
[1753718790725,42.77824664,186.46,186.45,1.98505285]
[1753718791260,38.82,186.49,186.45,12.87470813]
[1753718791440,2.86279756,186.54,186.48,10.55965528]
[1753718791748,46.77635284,186.53,186.49,10.55965528]
[1753718791948,0.66998981,186.57,186.53,16.78468397]
[1753718792129,15.91727649,186.65,186.57,16.78468397]
[1753718792337,8.58280411,186.64,186.61,10.55965528]
[1753718792563,6.02608602,186.69,186.63,10.55965528]
[1753718792742,3.95673625,186.68,186.66,10.55965528]
[1753718793046,0.66952329,186.7,186.67,10.55965528]
[1753718793351,6.02540037,186.71,186.67,10.55965528]
[1753718793549,10.55965528,186.69,186.63,16.78468397]
[1753718793733,10.55965528,186.66,186.57,0.27044168]
[1753718793937,10.55965528,186.63,186.56,0.33]
[1753718794146,10.55965528,186.61,186.56,10.55965528]
[1753718794454,10.55965528,186.61,186.55,16.78468397]
[1753718794623,10.55965528,186.61,186.56,10.55965528]
[1753718794823,40.2598821,186.6,186.51,10.55965528]
[1753718795041,38.92,186.59,186.49,11.89244926]
[1753718795240,16.58943193,186.58,186.53,10.55965528]
[1753718795428,5.35982275,186.58,186.55,10.55965528]
[1753718795952,5.35982275,186.58,186.5,17.05590148]
[1753718796253,15.91947803,186.58,186.53,10.55965528]
[1753718796459,1.33998981,186.57,186.5,17.11468397]
[1753718796771,1.33998981,186.57,186.51,10.55965528]
[1753718796964,11.89964509,186.57,186.51,10.55965528]
[1753718797179,10.55965528,186.56,186.51,10.55965528]
[1753718797389,0.67006164,186.55,186.53,16.78468397]
[1753718797548,39.08,186.58,186.54,10.55965528]
[1753718798252,39.769918,186.59,186.54,10.55965528]
[1753718798456,39.769918,186.59,186.55,10.55965528]
[1753718798773,0.6698103,186.62,186.58,10.55965528]
[1753718798979,39.74973853,186.64,186.61,10.55965528]
[1753718799137,5.35844038,186.63,186.61,10.55965528]
[1753718799478,39.74973853,186.64,186.61,10.55965528]
[1753718799677,0.66970265,186.65,186.57,0.27074333]
[1753718799840,0.66973853,186.64,186.59,10.55965528]
[1753718800037,0.67,186.65,186.61,10.55965528]
[1753718800270,17.25568773,186.69,186.63,10.55965528]
[1753718800489,39.12,186.7,186.67,10.55965528]
[1753718800638,39.12,186.7,186.66,10.55965528]
[1753718800844,0.66952329,186.7,186.65,10.55965528]
[1753718801036,11.22965528,186.69,186.61,6.1826]
[1753718801238,11.2292503,186.68,186.62,10.55965528]
[1753718801572,11.2292503,186.68,186.59,16.78468397]
[1753718801573,10.55965528,186.63,186.59,16.78468397]
[1753718801859,10.55965528,186.64,186.59,27.34433925]
[1753718802243,11.22965528,186.64,186.59,27.34433925]
[1753718802438,5.35819535,186.63,186.59,27.34433925]
[1753718802845,15.91762101,186.64,186.59,27.34433925]
[1753718803279,16.58762101,186.64,186.59,27.34433925]
[1753718803446,16.58762101,186.64,186.56,6.2951]
[1753718803447,11.22942969,186.63,186.56,6.2951]
[1753718803650,10.55965528,186.59,186.54,27.34433925]
[1753718804469,10.55965528,186.59,186.54,10.55965528]
[1753718804968,15.91871208,186.6,186.54,10.55965528]
[1753718805340,39.14,186.64,186.59,10.55965528]
[1753718805540,39.14,186.64,186.6,10.55965528]
[1753718805748,14.06286703,186.67,186.61,10.55965528]
[1753718805749,11.22965528,186.67,186.61,10.55965528]
[1753718805951,39.12,186.66,186.62,10.55965528]
[1753718806556,39.12,186.66,186.63,10.55965528]
[1753718806867,39.78966677,186.66,186.63,10.55965528]
[1753718807163,44.47751553,186.66,186.63,10.55965528]
[1753718807470,44.47751553,186.66,186.64,10.55965528]
[1753718809062,39.12,186.66,186.64,10.55965528]
[1753718809377,0.67,186.69,186.65,10.55965528]
[1753718809571,0.67,186.69,186.63,10.55965528]
[1753718809572,0.67,186.66,186.63,10.55965528]
[1753718809967,0.67,186.65,186.6,16.78468397]
[1753718810171,1.33973853,186.64,186.59,10.55965528]
[1753718810358,0.67,186.67,186.62,10.55965528]
[1753718810564,39.74966677,186.66,186.63,10.55965528]
[1753718810947,44.43737281,186.66,186.63,10.55965528]
[1753718811147,44.43737281,186.66,186.59,17.05525506]
[1753718811148,39.08,186.66,186.65,10.55965528]
[1753718811378,5.3568165,186.68,186.65,10.55965528]
[1753718811560,45.14608114,186.69,186.66,10.55965528]
[1753718811753,44.47652198,186.69,186.66,10.55965528]
[1753718811955,1.33952329,186.7,186.62,17.38515429]
[1753718811956,0.66945158,186.72,186.68,27.34433925]
[1753718812278,5.38453718,186.76,186.72,16.78468397]
[1753718812477,5.38453718,186.76,186.74,10.55965528]
[1753718812852,0.03,186.76,186.75,10.55965528]
[1753718813359,0.03,186.76,186.75,27.94404888]
[1753718813561,0.03,186.76,186.75,33.29880122]
[1753718813764,0.03,186.76,186.75,33.58312436]
[1753718814162,0.03,186.76,186.75,27.61404888]
[1753718814365,0.03,186.76,186.75,27.34433925]
[1753718815876,0.03,186.76,186.75,32.69909159]
[1753718816074,0.03,186.76,186.75,33.02909159]
[1753718816478,0.1,186.83,186.76,0.14216157]
[1753718816678,0.1,186.83,186.82,10.55965528]
[1753718817858,0.1,186.83,186.82,27.34433925]
[1753718818962,0.1,186.83,186.82,27.61354729]
[1753718819474,0.1,186.83,186.82,10.55965528]
[1753718820566,0.1,186.83,186.82,10.82886332]
[1753718820885,0.1,186.83,186.82,39.30249324]
[1753718821084,0.1,186.83,186.82,65.30249324]
[1753718821398,0.03,186.9,186.86,16.78468397]
[1753718821567,0.03,186.9,186.89,37.90399453]
[1753718821895,0.03,186.9,186.89,38.17270138]
[1753718822070,0.03,186.9,186.89,38.62702452]
[1753718822266,0.03,186.9,186.89,27.6130461]
[1753718822667,0.03,186.92,186.91,43.06900711]
[1753718822867,0.03,186.92,186.91,53.8972261]
[1753718823372,0.1,186.95,186.93,0.28432314]
[1753718823697,0.03,186.98,186.97,43.06900711]
[1753718823998,0.82,187.07,186.98,17.06900711]
[1753718824175,5.34593096,187.06,186.99,27.89668246]
[1753718824499,0.1,187.07,187.03,0.28432314]
[1753718824795,0.1,187.07,187.06,27.62866239]
[1753718824966,0.03,187.12,187.08,38.18831767]
[1753718825166,0.03,187.12,187.11,16.78468397]
[1753718825365,0.03,187.12,187.11,27.34433925]
[1753718825594,0.03,187.12,187.09,0.26716261]
[1753718825799,0.03,187.12,187.11,10.55965528]
[1753718826177,0.03,187.12,187.1,10.55965528]
[1753718826381,0.72,187.11,187.07,27.34433925]
[1753718826683,0.03,187.12,187.1,10.55965528]
[1753718826887,0.03,187.12,187.11,10.55965528]
[1753718827102,0.03,187.12,187.11,27.34433925]
[1753718827599,0.03,187.12,187.11,43.53276745]
[1753718827769,0.03,187.16,187.12,17.06900711]
[1753718827966,0.03,187.16,187.15,27.34433925]
[1753718828476,0.03,187.16,187.15,27.62866239]
[1753718828673,0.03,187.17,187.16,17.06900711]
[1753718828891,0.1,187.18,187.17,27.62866239]
[1753718829090,0.1,187.18,187.17,27.34433925]
[1753718829994,0.1,187.18,187.17,10.55965528]
[1753718829995,0.82,187.18,187.17,10.55965528]
[1753718831066,6.16245111,187.18,187.17,10.55965528]
[1753718831267,0.82,187.18,187.17,10.55965528]
[1753718831467,6.16245111,187.18,187.17,10.55965528]
[1753718831699,16.72210639,187.18,187.13,27.34433925]
[1753718831877,16.72210639,187.18,187.1,10.55965528]
[1753718831878,10.55965528,187.16,187.1,10.55965528]
[1753718832196,1.38784206,187.17,187.05,6.1313]
[1753718832197,10.55965528,187.13,187.08,10.55965528]
[1753718832368,10.55965528,187.13,187.05,6.1313]
[1753718832369,11.9476758,187.12,187.07,10.55965528]
[1753718832566,11.27965528,187.11,187.01,0.26711978]
[1753718832795,11.2277472,187.1,187.04,10.55965528]
[1753718832997,16.8872397,187.09,187.04,16.1672397]
[1753718833179,0.72,187.08,187.04,16.1672397]
[1753718833385,0.72,187.07,187.04,16.1672397]
[1753718833576,6.06587832,187.06,187.04,16.1672397]
[1753718834396,0.72,187.06,187.04,16.1672397]
[1753718834778,0.72,187.06,187.03,16.1672397]
[1753718835101,16.8872397,187.05,186.99,16.1672397]
[1753718835273,0.72,187.04,186.99,16.1672397]
[1753718835481,6.06686921,187.03,186.99,16.1672397]
[1753718835676,6.06686921,187.03,186.98,26.0]
[1753718835885,5.34641315,187.05,187.02,16.1672397]
[1753718836089,0.72,187.04,187.02,16.1672397]
[1753718836503,29.53122109,187.07,186.99,16.78468397]
[1753718836504,0.72,187.07,187.04,16.78468397]
[1753718836797,0.72,187.07,187.06,16.1672397]
[1753718837002,0.72,187.07,187.05,16.1672397]
[1753718837203,5.34503259,187.09,187.06,16.1672397]
[1753718837517,5.34587832,187.06,187.0,16.78468397]
[1753718837676,16.8872397,187.05,187.0,16.78468397]
[1753718837874,0.72,187.04,187.0,32.95192367]
[1753718838072,21.51311802,187.06,187.0,32.95192367]
[1753718838283,16.83551021,187.05,187.0,32.95192367]
[1753718838482,16.1672397,187.02,186.97,16.1672397]
[1753718838731,16.8872397,187.01,186.95,32.95192367]
[1753718838884,0.72,187.01,186.97,16.1672397]
[1753718839085,0.72,187.0,186.97,16.1672397]
[1753718839598,6.06767769,187.0,186.97,16.1672397]
[1753718839796,5.34767769,187.0,186.97,16.1672397]
[1753718840102,0.72,186.99,186.97,16.78468397]
[1753718840476,0.72,186.99,186.93,17.19495163]
[1753718840685,5.34731448,187.01,186.97,16.78468397]
[1753718840879,55.9872397,187.06,187.0,16.1672397]
[1753718841183,0.66827051,187.05,187.0,16.1672397]
[1753718841388,0.66819906,187.07,187.03,16.78468397]
[1753718841607,6.06532175,187.08,187.05,16.1672397]
[1753718841876,0.72,187.07,187.03,16.1672397]
[1753718842278,0.72,187.07,187.04,16.78468397]
[1753718842475,45.85310654,187.1,187.05,16.1672397]
[1753718842680,0.72,187.09,187.06,16.78468397]
[1753718842914,0.72,187.09,187.06,32.95192367]
[1753718843139,61.33168906,187.12,187.07,16.1672397]
[1753718843421,16.1672397,187.1,187.05,16.1672397]
[1753718843603,6.06502111,187.09,187.06,16.78468397]
[1753718843918,6.06502111,187.09,187.06,32.95192367]
[1753718844329,5.34502111,187.09,187.06,32.95192367]
[1753718844531,16.1672397,187.07,186.99,16.1672397]
[1753718844699,16.1672397,187.04,187.0,16.78468397]
[1753718844894,17.55547449,187.06,187.0,16.1672397]
[1753718845111,39.12,187.07,187.03,16.1672397]
[1753718845419,0.72,187.06,187.03,16.1672397]
[1753718845601,0.72,187.06,187.02,16.1672397]
[1753718845797,6.06611829,187.06,187.02,16.1672397]
[1753718846214,16.1672397,187.04,186.98,16.1672397]
[1753718846526,16.1672397,187.01,186.96,16.1672397]
[1753718846722,16.1672397,187.02,186.96,16.1672397]
[1753718846894,0.72,187.01,186.98,16.78468397]
[1753718847093,16.1672397,187.02,186.97,16.1672397]
[1753718847298,0.72,187.0,186.97,16.78468397]
[1753718847515,16.8872397,186.99,186.91,16.78468397]
[1753718847829,5.34816557,186.98,186.95,16.78468397]
[1753718848012,0.72,186.99,186.95,32.95192367]
[1753718848205,39.84,187.02,186.98,16.1672397]
[1753718848396,39.12,187.02,187.0,16.1672397]
[1753718849203,39.12,187.02,186.99,16.1672397]
[1753718849707,39.12,187.02,187.0,16.1672397]
[1753718850109,39.84,187.05,187.01,16.1672397]
[1753718850704,44.46630813,187.05,187.01,16.1672397]
[1753718850927,0.72,187.04,187.01,16.1672397]
[1753718851207,0.67,187.03,187.01,16.78468397]
[1753718851529,0.67,187.03,187.01,16.1672397]
[1753718851742,17.50561741,187.02,186.93,5.3495346]
[1753718851942,16.8372397,187.01,186.96,16.78468397]
[1753718852110,16.1672397,186.97,186.91,16.43546027]
[1753718852307,16.1672397,186.97,186.9,0.06]
[1753718852308,16.8372397,186.96,186.9,16.2272397]
[1753718852508,16.8372397,186.96,186.91,16.78468397]
[1753718852732,0.67,186.95,186.91,16.78468397]
[1753718853044,0.67,186.94,186.9,0.06]